bitfinex-derivatives/quotes_BTCF0:USTF0_20241023
["timestamp","ask_amount","ask_price","bid_price","bid_amount"]
[1729713352399,0.17,66431.0,66430.0,0.075346]
[1729713352400,0.075346,66431.0,66430.0,0.075346]
[1729713352599,0.075346,66431.0,66430.0,0.17588715]
[1729713353399,0.075346,66431.0,66430.0,0.29572882]
[1729713354294,0.075346,66431.0,66430.0,0.17588715]
[1729713354489,0.245342,66435.0,66434.0,0.075341]
[1729713354693,0.075341,66434.0,66432.0,0.07428285]
[1729713355001,0.17,66435.0,66431.0,0.07428285]
[1729713355295,0.075341,66434.0,66430.0,0.1658781]
[1729713355498,0.075345,66431.0,66430.0,0.1658781]
[1729713357196,0.075345,66431.0,66430.0,0.26738063]
[1729713357399,0.075345,66431.0,66430.0,0.1658781]
[1729713357600,0.075311,66461.0,66430.0,0.73917789]
[1729713357896,0.075311,66461.0,66451.0,0.05934609]
[1729713357897,0.1508,66455.0,66451.0,0.05934609]
[1729713358094,0.2917,66461.0,66451.0,0.05934609]
[1729713358293,0.1508,66460.0,66459.0,0.044449]
[1729713358493,0.1508,66460.0,66455.0,0.05934609]
[1729713358701,0.01662634,66461.0,66457.0,0.05934609]
[1729713358890,0.075299,66472.0,66457.0,0.13466109]
[1729713359091,0.075306,66465.0,66464.0,0.04444478]
[1729713359292,0.075309,66462.0,66461.0,0.04444478]
[1729713359491,0.245309,66462.0,66461.0,0.04444478]
[1729713359705,0.245309,66462.0,66456.0,0.05934609]
[1729713359896,0.245309,66462.0,66461.0,0.04439107]
[1729713360198,0.075315,66458.0,66456.0,0.05934609]
[1729713360699,0.075315,66458.0,66455.0,0.13466309]
[1729713361298,0.075315,66458.0,66456.0,0.04435799]
[1729713362388,0.075315,66458.0,66455.0,0.075317]
[1729713362389,0.03254843,66457.0,66455.0,0.075317]
[1729713362594,0.03254843,66456.0,66455.0,0.075317]
[1729713362993,0.03254843,66457.0,66454.0,0.01615542]
[1729713363199,0.03254843,66457.0,66456.0,0.245316]
[1729713363396,0.075311,66461.0,66457.0,0.075315]
[1729713363600,0.075311,66461.0,66456.0,0.17]
[1729713363601,0.03154732,66460.0,66459.0,0.075313]
[1729713364593,0.075311,66461.0,66459.0,0.075313]
[1729713364896,0.075304,66468.0,66464.0,0.075307]
[1729713365095,0.075304,66468.0,66466.0,0.245304]
[1729713365300,0.1508,66473.0,66466.0,0.17]
[1729713365500,0.03181592,66472.0,66470.0,0.17]
[1729713365696,0.1461,66481.0,66470.0,0.17]
[1729713365697,0.03181592,66471.0,66470.0,0.2453]
[1729713365898,0.1461,66481.0,66469.0,0.075301]
[1729713365899,0.075297,66473.0,66469.0,0.075301]
[1729713366097,0.075297,66473.0,66466.0,0.17]
[1729713366405,0.075297,66473.0,66471.0,0.075299]
[1729713368194,0.075298,66472.0,66471.0,0.075299]
[1729713368400,0.17,66476.0,66466.0,0.17]
[1729713368696,0.075298,66472.0,66468.0,0.075303]
[1729713368902,0.0753,66471.0,66468.0,0.075303]
[1729713370400,0.0753,66471.0,66470.0,0.17]
[1729713370908,0.0753,66471.0,66469.0,0.075301]
[1729713371406,0.0753,66471.0,66470.0,0.17]
[1729713374403,0.075295,66475.0,66470.0,0.01637848]
[1729713374603,0.075299,66471.0,66469.0,0.075301]
[1729713374805,0.0753,66470.0,66469.0,0.075301]
[1729713377112,0.16231398,66481.0,66472.0,0.075297]
[1729713377415,0.16231398,66481.0,66475.0,0.17]
[1729713377615,0.075294,66476.0,66475.0,0.17]
[1729713379019,0.075294,66476.0,66471.0,0.17]
[1729713379217,0.075298,66472.0,66471.0,0.17]
[1729713379714,0.16231398,66481.0,66467.0,0.17]
[1729713379914,0.075308,66463.0,66462.0,0.29378]
[1729713380121,0.075308,66463.0,66462.0,0.2927]
[1729713380418,0.075308,66463.0,66462.0,0.30901475]
[1729713380608,0.075308,66463.0,66462.0,0.47901475]
[1729713383712,0.245308,66463.0,66462.0,0.01631475]
[1729713383918,0.4514,66463.0,66446.0,0.04419232]
[1729713384118,0.245322,66451.0,66442.0,0.363732]
[1729713384313,0.27690662,66451.0,66450.0,0.00133055]
[1729713384610,0.14380653,66451.0,66450.0,0.01758127]
[1729713384809,0.14380653,66451.0,66450.0,0.00133055]
[1729713385011,0.14380653,66451.0,66450.0,0.07665355]
[1729713385012,0.03158462,66451.0,66450.0,0.07665355]
[1729713386123,0.03158462,66451.0,66450.0,0.52813355]
[1729713386124,0.03190072,66451.0,66450.0,0.52813355]
[1729713386529,0.13448625,66466.0,66450.0,0.45281055]
[1729713386730,0.07531,66462.0,66461.0,0.075309]
[1729713386917,0.1125432,66462.0,66461.0,0.075309]
[1729713388629,0.1122028,66462.0,66461.0,0.075309]
[1729713389140,0.1584454,66462.0,66461.0,0.075309]
[1729713389734,0.29376103,66462.0,66461.0,0.075309]
[1729713390233,0.1584454,66462.0,66461.0,0.075309]
[1729713390538,0.1584471,66462.0,66461.0,0.075309]
[1729713390843,0.075311,66461.0,66460.0,0.2916]
[1729713391140,0.075311,66461.0,66451.0,0.31388]
[1729713391141,0.0831371,66461.0,66451.0,0.31388]
[1729713391330,0.245318,66456.0,66455.0,0.075316]
[1729713391641,0.1122108,66456.0,66455.0,0.075316]
[1729713392043,0.075318,66456.0,66455.0,0.14896987]
[1729713395443,0.075318,66456.0,66455.0,0.075316]
[1729713399342,0.20112362,66456.0,66451.0,0.31801632]
[1729713399541,0.075321,66452.0,66451.0,0.39225832]
[1729713403048,0.17,66462.0,66451.0,0.31693632]
[1729713403244,0.075321,66455.0,66454.0,0.075316]
[1729713403543,0.10611891,66455.0,66454.0,0.075316]
[1729713405251,0.10611891,66455.0,66454.0,0.245316]
[1729713405748,0.075314,66460.0,66459.0,0.075311]
[1729713405937,0.075314,66460.0,66459.0,0.245311]
[1729713406246,0.10655636,66460.0,66459.0,0.245311]
[1729713406851,0.10655636,66460.0,66459.0,0.075311]
[1729713407049,0.075314,66460.0,66459.0,0.11979992]
[1729713407243,0.075314,66460.0,66459.0,0.075311]
[1729713407543,0.075314,66460.0,66459.0,0.11979992]
[1729713407750,0.075314,66460.0,66459.0,0.075311]
[1729713410446,0.075314,66460.0,66459.0,0.09203079]
[1729713413041,0.075314,66460.0,66459.0,0.13651971]
[1729713414049,0.1421072,66460.0,66459.0,0.09203079]
[1729713414745,0.1421072,66460.0,66459.0,0.01671979]
[1729713414940,0.075319,66455.0,66451.0,0.301]
[1729713415147,0.2367933,66454.0,66451.0,0.01652633]
[1729713415452,0.075321,66452.0,66451.0,0.075321]
[1729713415642,0.10521919,66452.0,66451.0,0.075321]
[1729713420052,0.06679451,66452.0,66451.0,0.245321]
[1729713421048,0.02989819,66452.0,66451.0,0.245321]
[1729713421243,0.10521919,66452.0,66451.0,0.075321]
[1729713421863,0.02989819,66452.0,66451.0,0.245321]
[1729713422047,0.14944113,66469.0,66451.0,0.89534175]
[1729713422247,0.075302,66469.0,66468.0,0.075302]
[1729713422859,0.075298,66472.0,66471.0,0.075299]
[1729713423252,0.075274,66494.0,66471.0,0.075299]
[1729713423253,0.075256,66510.0,66471.0,1.49577584]
[1729713423554,0.075256,66510.0,66493.0,0.075275]
[1729713423555,0.075273,66495.0,66493.0,0.075275]
[1729713423756,0.01615148,66505.0,66489.0,0.14312]
[1729713423948,0.075276,66492.0,66490.0,0.14312]
[1729713424151,0.07526,66507.0,66490.0,0.14312]
[1729713424352,0.075271,66496.0,66495.0,0.04437988]
[1729713424859,0.075275,66493.0,66492.0,0.17]
[1729713425756,0.075275,66493.0,66492.0,0.18656826]
[1729713425951,0.17,66502.0,66492.0,0.18656826]
[1729713426147,0.075273,66495.0,66492.0,0.18656826]
[1729713426867,0.075275,66494.0,66492.0,0.18656826]
[1729713427752,0.17,66498.0,66490.0,0.14308]
[1729713427958,0.075275,66493.0,66490.0,0.14308]
[1729713428155,0.075275,66493.0,66490.0,0.31308]
[1729713429054,0.075269,66498.0,66490.0,0.17]
[1729713429352,0.14944113,66494.0,66493.0,0.17]
[1729713429552,0.08309939,66494.0,66493.0,0.10718011]
[1729713429752,0.04622258,66494.0,66493.0,0.10718011]
[1729713429955,0.08309939,66494.0,66493.0,0.10718011]
[1729713430349,0.03687681,66494.0,66488.0,0.14308]
[1729713430550,0.08309939,66494.0,66493.0,0.17]
[1729713431359,0.16456316,66494.0,66493.0,0.17]
[1729713431557,0.08309939,66494.0,66493.0,0.17]
[1729713431763,0.08309939,66494.0,66490.0,0.245278]
[1729713431955,0.08309939,66493.0,66490.0,0.245278]
[1729713432157,0.14956464,66491.0,66490.0,0.245278]
[1729713432359,0.26175265,66491.0,66490.0,0.245278]
[1729713433655,0.11218801,66491.0,66490.0,0.245278]
[1729713434051,0.18746501,66491.0,66487.0,0.0167166]
[1729713434256,0.17,66496.0,66486.0,0.389402]
[1729713434257,0.26175583,66490.0,66486.0,0.389402]
[1729713434451,0.11219119,66489.0,66486.0,0.245282]
[1729713434651,0.11219119,66488.0,66486.0,0.26142971]
[1729713434957,0.11219119,66488.0,66481.0,0.2937]
[1729713434958,0.11219119,66487.0,66481.0,0.01647768]
[1729713435160,0.075292,66478.0,66477.0,0.00225576]
[1729713435355,0.35748869,66478.0,66477.0,0.00225576]
[1729713436257,0.24151264,66478.0,66477.0,0.00225576]
[1729713437259,0.24151264,66478.0,66477.0,0.24754876]
[1729713437564,0.11219669,66478.0,66477.0,0.24754876]
[1729713438458,0.08310721,66478.0,66477.0,0.24754876]
[1729713438760,0.05402395,66480.0,66477.0,0.24754876]
[1729713438961,0.075286,66483.0,66477.0,0.17225576]
[1729713439358,0.075286,66483.0,66481.0,0.075288]
[1729713439559,0.075286,66483.0,66482.0,0.075287]
[1729713443168,0.07529,66480.0,66478.0,0.075291]
[1729713443359,0.07529,66480.0,66479.0,0.07529]
[1729713443970,0.075292,66478.0,66477.0,0.0185883]
[1729713444570,0.075287,66482.0,66481.0,0.075287]
[1729713446275,0.075291,66479.0,66477.0,0.2638803]
[1729713446668,0.075291,66479.0,66478.0,0.075292]
[1729713446969,0.075288,66482.0,66481.0,0.075288]
[1729713448274,0.075285,66484.0,66482.0,0.075286]
[1729713448474,0.075285,66484.0,66483.0,0.075286]
[1729713448776,0.01609887,66487.0,66481.0,0.3039]
[1729713449073,0.075287,66482.0,66481.0,0.3039]
[1729713449673,0.075289,66480.0,66479.0,0.07529]
[1729713451073,0.075292,66478.0,66477.0,0.0185883]
[1729713451470,0.075292,66478.0,66477.0,0.00225576]
[1729713451672,0.834372,66478.0,66477.0,1e-08]
[1729713452078,0.075314,66460.0,66456.0,0.3103]
[1729713452372,0.075313,66460.0,66459.0,0.075313]
[1729713452976,0.17,66461.0,66456.0,0.32733491]
[1729713453173,0.075315,66457.0,66456.0,0.40157091]
[1729713454278,0.075314,66459.0,66458.0,0.075314]
[1729713455879,0.075309,66465.0,66464.0,0.075307]
[1729713456078,0.17,66469.0,66456.0,0.49737491]
[1729713456079,0.075311,66461.0,66460.0,0.245311]
[1729713456378,0.075311,66461.0,66460.0,0.075311]
[1729713457673,0.17,66474.0,66464.0,0.075307]
[1729713457879,0.075303,66469.0,66468.0,0.075302]
[1729713460474,0.10440201,66469.0,66468.0,0.075302]
[1729713461072,0.10440207,66469.0,66468.0,0.075302]
[1729713462279,0.1412919,66469.0,66468.0,0.075302]
[1729713462777,0.1412919,66469.0,66465.0,0.075306]
[1729713462778,0.075306,66466.0,66465.0,0.075306]
[1729713462974,0.1412949,66466.0,66465.0,0.075306]
[1729713464285,0.075306,66465.0,66464.0,0.01664852]
[1729713464584,0.075306,66465.0,66459.0,0.075312]
[1729713464585,0.075312,66460.0,66459.0,0.075312]
[1729713464882,0.14130428,66460.0,66459.0,0.075312]
[1729713465779,0.11220518,66460.0,66459.0,0.075312]
[1729713465979,0.10441358,66460.0,66459.0,0.075312]
[1729713467776,0.14130678,66460.0,66459.0,0.075312]
[1729713468489,0.075312,66460.0,66459.0,0.075312]
[1729713472088,0.075304,66468.0,66467.0,0.075303]
[1729713472275,0.075301,66471.0,66470.0,0.075299]
[1729713472689,0.075296,66475.0,66474.0,0.075295]
[1729713472988,0.155,66478.0,66472.0,0.075298]
[1729713472989,0.075298,66473.0,66472.0,0.075298]
[1729713475492,0.075298,66473.0,66472.0,0.09196202]
[1729713475786,0.075298,66473.0,66472.0,0.075298]
[1729713476287,0.245298,66473.0,66472.0,0.075298]
[1729713478894,0.075298,66473.0,66472.0,0.075298]
[1729713479094,0.221688,66481.0,66470.0,0.01652783]
[1729713479095,0.17,66479.0,66471.0,0.17]
[1729713479394,0.075286,66483.0,66481.0,0.075288]
[1729713479588,0.075286,66483.0,66482.0,0.245287]
[1729713479783,0.075286,66483.0,66482.0,0.075287]
[1729713480491,0.01641671,66486.0,66482.0,0.17]
[1729713480688,0.075283,66486.0,66485.0,0.075284]
[1729713480993,0.17,66493.0,66482.0,0.17]
[1729713481194,0.17,66493.0,66485.0,0.075283]
[1729713481393,0.075281,66488.0,66485.0,0.075283]
[1729713481693,0.075282,66487.0,66485.0,0.075283]
[1729713482094,0.075282,66487.0,66483.0,0.075286]
[1729713482291,0.17,66493.0,66482.0,0.17]
[1729713482493,0.075282,66487.0,66485.0,0.075283]
[1729713482695,0.075282,66487.0,66486.0,0.075283]
[1729713483387,0.14125555,66487.0,66486.0,0.075283]
[1729713483588,0.18748378,66487.0,66486.0,0.075283]
[1729713484590,0.18748378,66487.0,66486.0,0.04932057]
[1729713484789,0.11220178,66487.0,66486.0,0.21932057]
[1729713484988,0.15023305,66487.0,66486.0,0.21932057]
[1729713485290,0.11219484,66487.0,66486.0,0.21932057]
[1729713486194,0.15015751,66487.0,66486.0,0.21932057]
[1729713486598,0.26235235,66487.0,66486.0,0.21932057]
[1729713486791,0.11219484,66487.0,66486.0,0.21932057]
[1729713487185,0.08310441,66487.0,66486.0,0.21932057]
[1729713487390,0.17,66506.0,66486.0,0.21932057]
[1729713487391,0.13506833,66491.0,66490.0,0.075278]
[1729713487590,0.13506833,66492.0,66491.0,0.075277]
[1729713487797,0.13506833,66493.0,66492.0,0.075276]
[1729713488000,0.0165527,66506.0,66495.0,0.075272]
[1729713488001,0.15015751,66496.0,66495.0,0.075272]
[1729713488301,0.13499469,66496.0,66495.0,0.17]
[1729713488496,0.13499469,66498.0,66495.0,0.17]
[1729713488695,0.13499469,66498.0,66497.0,0.24527]
[1729713489300,0.13499469,66499.0,66498.0,0.075269]
[1729713489497,0.15015751,66500.0,66499.0,0.075268]
[1729713489799,0.15015751,66504.0,66503.0,0.075263]
[1729713489993,0.1348364,66504.0,66503.0,0.245263]
[1729713490297,0.1348364,66505.0,66504.0,0.075262]
[1729713490498,0.07526,66507.0,66506.0,0.07526]
[1729713490903,0.17,66509.0,66508.0,0.075258]
[1729713491106,0.075257,66509.0,66508.0,0.075258]
[1729713491598,0.075252,66513.0,66512.0,0.075253]
[1729713492402,0.075254,66511.0,66510.0,0.075255]
[1729713493404,0.075252,66513.0,66512.0,0.075253]
[1729713494108,0.17,66517.0,66507.0,0.17]
[1729713494289,0.075255,66511.0,66510.0,0.075255]
[1729713498504,0.14119919,66511.0,66510.0,0.075255]
[1729713500099,0.06594419,66511.0,66510.0,0.245255]
[1729713500294,0.14119819,66511.0,66510.0,0.245255]
[1729713500501,0.06594419,66511.0,66510.0,0.245255]
[1729713500703,0.02907928,66511.0,66510.0,0.245255]
[1729713500901,0.11214041,66518.0,66510.0,0.245255]
[1729713501103,0.06593878,66517.0,66516.0,0.075249]
[1729713501307,0.112141,66517.0,66511.0,0.075254]
[1729713501605,0.06593878,66516.0,66515.0,0.07525]
[1729713501801,0.06593878,66516.0,66515.0,0.24525]
[1729713502401,0.02907928,66516.0,66515.0,0.24525]
[1729713503005,0.13457901,66527.0,66526.0,0.075237]
[1729713503207,0.08305344,66527.0,66526.0,0.075237]
[1729713503412,0.03685754,66527.0,66526.0,0.075237]
[1729713504407,0.03685754,66527.0,66526.0,0.09181416]
[1729713504609,0.28209354,66527.0,66526.0,0.075237]
[1729713505410,0.28209231,66527.0,66526.0,0.075237]
[1729713506413,0.245236,66527.0,66526.0,0.075237]
[1729713508914,0.17,66527.0,66517.0,0.14224]
[1729713509113,0.245245,66520.0,66519.0,0.075245]
[1729713509509,0.245245,66520.0,66513.0,0.1589]
[1729713509510,0.075249,66517.0,66516.0,0.075247]
[1729713510713,0.075249,66517.0,66512.0,0.0775082]
[1729713510714,0.075252,66513.0,66512.0,0.0775082]
[1729713511010,0.245252,66513.0,66512.0,0.0775082]
[1729713512014,0.245252,66513.0,66512.0,0.075253]
[1729713512211,0.075252,66513.0,66512.0,0.075253]
[1729713512418,0.075249,66516.0,66515.0,0.075246]
[1729713512613,0.075249,66516.0,66515.0,0.245246]
[1729713513405,0.13457901,66546.0,66515.0,0.17]
[1729713513713,0.07524,66525.0,66524.0,0.075239]
[1729713513922,0.10431613,66525.0,66524.0,0.075239]
[1729713514311,0.10431223,66525.0,66524.0,0.075239]
[1729713514907,0.02907223,66525.0,66524.0,0.075239]
[1729713515519,0.27431023,66525.0,66524.0,0.075239]
[1729713516320,0.2743122,66525.0,66524.0,0.075239]
[1729713518718,0.31116947,66525.0,66524.0,0.075239]
[1729713520519,0.06593147,66525.0,66524.0,0.075239]
[1729713520822,0.06593055,66525.0,66521.0,0.01602962]
[1729713521015,0.075237,66527.0,66523.0,0.075241]
[1729713521016,0.02907327,66524.0,66523.0,0.075241]
[1729713521409,0.075237,66527.0,66518.0,0.17]
[1729713521610,0.075237,66527.0,66525.0,0.075237]
[1729713521917,0.075233,66530.0,66529.0,0.075232]
[1729713522424,0.075233,66530.0,66529.0,0.245232]
[1729713525516,0.075233,66530.0,66529.0,0.17]
[1729713527417,0.075233,66530.0,66529.0,0.245234]
[1729713527718,0.075233,66530.0,66529.0,0.17]
[1729713528417,0.02907299,66530.0,66529.0,0.17]
[1729713528922,0.02907299,66530.0,66526.0,0.17]
[1729713529126,0.02907299,66529.0,66527.0,0.075236]
[1729713529321,0.02907299,66528.0,66527.0,0.075236]
[1729713529515,0.07523,66533.0,66527.0,0.075236]
[1729713529516,0.02907299,66532.0,66527.0,0.075236]
[1729713529717,0.02907299,66531.0,66527.0,0.075236]
[1729713529921,0.02907299,66530.0,66527.0,0.075236]
[1729713530118,0.02907299,66529.0,66527.0,0.075236]
[1729713530326,0.17151748,66534.0,66524.0,0.07524]
[1729713530327,0.02907299,66528.0,66524.0,0.07524]
[1729713530521,0.02907299,66527.0,66525.0,0.17]
[1729713530717,0.02907299,66526.0,66525.0,0.17]
[1729713530914,0.02907299,66526.0,66525.0,0.245239]
[1729713531316,0.02907299,66526.0,66525.0,0.17]
[1729713531529,0.02907299,66531.0,66526.0,0.075237]
[1729713531731,0.02907312,66531.0,66526.0,0.075237]
[1729713531923,0.10430612,66530.0,66526.0,0.075237]
[1729713532122,0.02907312,66529.0,66526.0,0.075237]
[1729713532722,0.02907312,66529.0,66525.0,0.17]
[1729713532935,0.02907312,66528.0,66525.0,0.245238]
[1729713534325,0.02907312,66528.0,66526.0,0.075237]
[1729713534524,0.02907312,66528.0,66527.0,0.075236]
[1729713535126,0.02907179,66528.0,66527.0,0.075236]
[1729713535326,0.02907011,66528.0,66527.0,0.075236]
[1729713536128,0.01635852,66540.0,66527.0,0.1545]
[1729713536437,0.075221,66541.0,66539.0,0.17]
[1729713536627,0.11210947,66540.0,66527.0,0.1545]
[1729713536829,0.05397288,66547.0,66539.0,0.17]
[1729713537130,0.075216,66545.0,66539.0,0.10746111]
[1729713537330,0.07522,66541.0,66539.0,0.10746111]
[1729713537533,0.11211047,66540.0,66539.0,0.10746111]
[1729713537730,0.18733247,66540.0,66537.0,0.075224]
[1729713537931,0.16608335,66539.0,66537.0,0.075224]
[1729713538133,0.16608335,66538.0,66537.0,0.075224]
[1729713538427,0.11211047,66538.0,66537.0,0.075224]
[1729713539628,0.18733288,66538.0,66537.0,0.075224]
[1729713540833,0.28210888,66538.0,66530.0,0.1472]
[1729713541035,0.075232,66531.0,66530.0,0.222433]
[1729713541238,0.0752581,66531.0,66530.0,0.222433]
[1729713541426,0.02906814,66531.0,66530.0,0.222433]
[1729713541639,0.27737953,66531.0,66530.0,0.222433]
[1729713542037,0.27737953,66531.0,66530.0,0.075233]
[1729713542436,0.19433879,66531.0,66530.0,0.075233]
[1729713543231,0.11210888,66531.0,66530.0,0.075233]
[1729713543431,0.16527065,66532.0,66526.0,0.01611241]
[1729713543632,0.07523,66533.0,66532.0,0.075231]
[1729713543933,0.10430095,66533.0,66532.0,0.075231]
[1729713544345,0.10430095,66533.0,66525.0,0.01830709]
[1729713544346,0.47999115,66533.0,66525.0,0.00225488]
[1729713544542,0.075237,66526.0,66525.0,0.00225488]
[1729713544740,0.10430815,66526.0,66525.0,0.00225488]
[1729713545046,1.28689321,66526.0,66498.0,0.0022552]
[1729713545342,0.14144,66536.0,66498.0,0.0022552]
[1729713545343,0.075261,66506.0,66502.0,0.075264]
[1729713545528,0.17,66503.0,66502.0,0.075264]
[1729713545843,0.17,66503.0,66498.0,0.0775232]
[1729713546036,0.245268,66499.0,66498.0,0.0022552]
[1729713546540,0.075273,66495.0,66460.0,0.04408725]
[1729713546741,0.075277,66491.0,66474.0,0.075296]
[1729713546941,0.17,66477.0,66474.0,0.075296]
[1729713547250,0.17,66477.0,66462.0,0.075309]
[1729713547251,0.245289,66481.0,66478.0,0.075292]
[1729713547640,0.14148,66490.0,66461.0,0.17]
[1729713547836,0.17,66462.0,66452.0,0.17]
[1729713548041,0.17,66462.0,66459.0,0.075312]
[1729713548244,0.17,66468.0,66459.0,0.17]
[1729713548449,0.0753,66472.0,66467.0,0.075304]
[1729713548747,0.17,66473.0,66467.0,0.075304]
[1729713548942,0.245298,66473.0,66467.0,0.075304]
[1729713549162,0.17,66473.0,66467.0,0.075304]
[1729713549349,0.075299,66472.0,66467.0,0.075304]
[1729713549834,0.0753,66471.0,66467.0,0.075304]
[1729713550639,0.17,66470.0,66460.0,0.01662866]
[1729713550843,0.245312,66461.0,66457.0,0.075315]
[1729713551043,0.17,66467.0,66457.0,0.17]
[1729713551238,0.0753,66471.0,66466.0,0.075304]
[1729713551548,0.13230954,66467.0,66466.0,0.075304]
[1729713551738,0.17,66467.0,66466.0,0.075304]
[1729713552138,0.17,66467.0,66462.0,0.04408725]
[1729713552139,0.17,66470.0,66469.0,0.075302]
[1729713552546,0.07526,66506.0,66468.0,0.17]
[1729713552840,0.07526,66506.0,66461.0,0.17]
[1729713552841,0.17,66470.0,66469.0,0.075302]
[1729713553640,0.17,66470.0,66460.0,0.058783]
[1729713553641,0.075303,66468.0,66466.0,0.075304]
[1729713553843,0.245304,66467.0,66460.0,0.04408725]
[1729713554045,0.17,66461.0,66460.0,0.11939925]
[1729713554246,0.17,66465.0,66459.0,0.04408725]
[1729713554437,0.17,66461.0,66460.0,0.075312]
[1729713554942,0.075319,66454.0,66453.0,0.04408725]
[1729713555141,0.17,66457.0,66449.0,0.04634407]
[1729713555346,0.17,66451.0,66449.0,0.00225682]
[1729713555648,0.075323,66450.0,66449.0,0.00225682]
[1729713556637,0.075323,66450.0,66433.0,0.35564725]
[1729713556638,0.696803,66450.0,66434.0,0.075342]
[1729713556838,0.17,66436.0,66435.0,0.075341]
[1729713557038,0.075337,66438.0,66437.0,0.075338]
[1729713557239,0.075342,66434.0,66430.0,0.01649996]
[1729713557445,0.075347,66429.0,66427.0,0.075349]
[1729713557748,0.075353,66424.0,66413.0,0.04408725]
[1729713557937,0.075354,66423.0,66422.0,0.075354]
[1729713558138,0.075349,66428.0,66421.0,0.075356]
[1729713558337,0.17,66430.0,66421.0,0.075356]
[1729713558338,0.26,66427.0,66421.0,0.075356]
[1729713558545,0.26,66423.0,66421.0,0.075356]
[1729713558741,0.075355,66422.0,66421.0,0.075356]
[1729713559161,0.26,66423.0,66410.0,0.26108]
[1729713559344,0.075357,66421.0,66420.0,0.075357]
[1729713559848,0.26,66423.0,66422.0,0.075355]
[1729713560151,0.075357,66421.0,66420.0,0.075358]
[1729713561243,0.075353,66425.0,66424.0,0.075353]
[1729713561450,0.26,66435.0,66423.0,0.26]
[1729713561640,0.26,66439.0,66430.0,0.075345]
[1729713561840,0.075345,66431.0,66430.0,0.075345]
[1729713562347,0.075349,66428.0,66427.0,0.075349]
[1729713562652,0.075348,66429.0,66427.0,0.075349]
[1729713562949,0.01613228,66446.0,66420.0,0.075357]
[1729713562950,0.26,66445.0,66428.0,0.26]
[1729713563451,0.42276,66471.0,66444.0,0.07533]
[1729713563452,0.075327,66448.0,66444.0,0.07533]
[1729713563651,0.075327,66448.0,66438.0,0.26]
[1729713563652,0.335327,66448.0,66438.0,0.26]
[1729713563953,0.335327,66448.0,66445.0,0.075329]
[1729713564252,0.335327,66448.0,66434.0,0.335341]
[1729713564253,0.26,66448.0,66434.0,0.00108]
[1729713564452,0.26,66437.0,66436.0,0.075338]
[1729713564646,0.075332,66443.0,66441.0,0.075333]
[1729713564962,0.075338,66438.0,66435.0,0.07534]
[1729713565152,0.26,66442.0,66433.0,0.00225782]
[1729713565449,0.26,66442.0,66439.0,0.075335]
[1729713565852,0.26,66442.0,66441.0,0.075334]
[1729713566157,0.075319,66455.0,66447.0,0.075327]
[1729713566158,0.075324,66450.0,66447.0,0.075327]
[1729713566451,0.07533,66444.0,66440.0,0.075335]
[1729713566655,0.33533,66444.0,66440.0,0.075335]
[1729713566852,0.33533,66444.0,66441.0,0.075333]
[1729713567148,0.26,66444.0,66437.0,0.075338]
[1729713567351,0.075336,66440.0,66437.0,0.075338]
[1729713567747,0.075336,66439.0,66437.0,0.075338]
[1729713567944,0.26,66439.0,66433.0,0.00225782]
[1729713568150,0.075326,66448.0,66433.0,0.00225782]
[1729713568151,0.335342,66434.0,66433.0,0.00225782]
[1729713568748,0.075343,66433.0,66414.0,0.04408725]
[1729713568952,0.26,66420.0,66413.0,0.04408725]
[1729713569148,0.26,66424.0,66412.0,0.04408725]
[1729713569349,0.01614314,66437.0,66409.0,0.00225788]
[1729713569350,0.26,66419.0,66409.0,0.00225788]
[1729713569561,0.26,66410.0,66409.0,0.00225788]
[1729713569860,0.075353,66424.0,66409.0,0.00225788]
[1729713569861,0.26,66414.0,66409.0,0.00225788]
[1729713570047,0.075368,66412.0,66409.0,0.00225788]
[1729713570249,0.075369,66410.0,66409.0,0.00225788]
[1729713570553,0.26,66418.0,66409.0,0.00225788]
[1729713570751,0.075367,66412.0,66410.0,0.075369]
[1729713571350,0.26,66418.0,66411.0,0.075367]
[1729713571850,0.26,66418.0,66409.0,0.00225788]
[1729713572051,0.26,66421.0,66411.0,0.26]
[1729713572246,0.075326,66449.0,66409.0,0.00225788]
[1729713572247,0.26,66430.0,66415.0,0.26]
[1729713572454,0.07532,66453.0,66423.0,0.075354]
[1729713572455,0.26,66434.0,66423.0,0.075354]
[1729713572653,0.21474271,66434.0,66423.0,0.26]
[1729713572859,0.21474271,66434.0,66413.0,0.075365]
[1729713572860,0.26,66439.0,66432.0,0.075343]
[1729713573156,0.42212,66463.0,66435.0,0.07534]
[1729713573157,0.26,66443.0,66435.0,0.07534]
[1729713573358,0.26,66443.0,66428.0,0.26]
[1729713573359,0.26,66452.0,66436.0,0.26]
[1729713573554,0.26,66452.0,66443.0,0.075331]
[1729713573957,0.26,66444.0,66433.0,0.075342]
[1729713574160,0.26,66439.0,66429.0,0.00225811]
[1729713574357,0.26,66439.0,66434.0,0.075341]
[1729713574563,0.26,66439.0,66435.0,0.07534]
[1729713574859,0.26,66439.0,66429.0,0.00225811]
[1729713574860,0.26,66451.0,66437.0,0.26]
[1729713575066,0.26,66456.0,66448.0,0.075326]
[1729713575256,0.26,66452.0,66437.0,0.26]
[1729713575561,0.26,66452.0,66447.0,0.075327]
[1729713576057,0.26,66478.0,66445.0,0.26]
[1729713576058,0.26,66456.0,66445.0,0.26]
[1729713576261,0.075271,66496.0,66455.0,0.26]
[1729713576262,0.14132,66473.0,66455.0,0.26]
[1729713576461,0.26,66466.0,66457.0,0.075315]
[1729713576664,0.26,66466.0,66459.0,0.075313]
[1729713576857,0.26,66466.0,66460.0,0.075312]
[1729713577255,0.26,66461.0,66460.0,0.075312]
[1729713577452,0.26,66461.0,66451.0,0.1585]